[Event "Titled Tuesday Blitz May 2 Late 2023"]
[White "Ansh M Shah"]
[Black "Gurevich, Dmitry"]
[WhiteFideId "25033379"]
[BlackFideId "2000407"]
[WhiteElo "2084"]
[BlackElo "2506"]
[Result "1/2-1/2"]
[Round "06"]
[TimeControl "180+2"]
[Date "2023.05.02"]
[WhiteClock "0:00:16"]
[BlackClock "0:00:05"]

1. d4 {[%clk 0:03:00]}  Nf6 {[%clk 0:02:58]} 2. c4 {[%clk 0:02:57]}  a6 {[%clk 0:02:58]} 3. Nc3 {[%clk 0:02:56]}  c5 {[%clk 0:02:55]} 4. d5 {[%clk 0:02:56]}  b5 {[%clk 0:02:54]} 5. cxb5 {[%clk 0:02:57]}  axb5 {[%clk 0:02:54]} 6. Nxb5 {[%clk 0:02:57]}  Qa5+ {[%clk 0:02:54]} 7. Nc3 {[%clk 0:02:57]}  Bb7 {[%clk 0:02:54]} 8. Bd2 {[%clk 0:02:54]}  Qb6 {[%clk 0:02:53]} 9. Na4 {[%clk 0:02:46]}  Qc7 {[%clk 0:02:41]} 10. Rc1 {[%clk 0:02:45]}  d6 {[%clk 0:02:34]} 11. b4 {[%clk 0:02:45]}  Bxd5 {[%clk 0:02:20]} 12. bxc5 {[%clk 0:02:45]}  Bc6 {[%clk 0:02:17]} 13. cxd6 {[%clk 0:02:42]}  Qxd6 {[%clk 0:02:16]} 14. Nc3 {[%clk 0:02:35]}  g6 {[%clk 0:02:12]} 15. Nf3 {[%clk 0:02:33]}  Bg7 {[%clk 0:02:12]} 16. e3 {[%clk 0:02:34]}  O-O {[%clk 0:02:11]} 17. Be2 {[%clk 0:02:33]}  Ne4 {[%clk 0:02:06]} 18. Nxe4 {[%clk 0:02:32]}  Bxe4 {[%clk 0:02:05]} 19. O-O {[%clk 0:02:31]}  Rxa2 {[%clk 0:02:03]} 20. Bc3 {[%clk 0:02:24]}  Qxd1 {[%clk 0:01:57]} 21. Bxd1 {[%clk 0:02:24]}  Rc8 {[%clk 0:01:52]} 22. Bb3 {[%clk 0:02:19]}  Ra3 {[%clk 0:01:48]} 23. Bxg7 {[%clk 0:02:13]}  Rxc1 {[%clk 0:01:41]} 24. Rxc1 {[%clk 0:02:14]}  Kxg7 {[%clk 0:01:34]} 25. Bc4 {[%clk 0:01:55]}  Bxf3 {[%clk 0:01:27]} 26. gxf3 {[%clk 0:01:56]}  Nd7 {[%clk 0:01:24]} 27. f4 {[%clk 0:01:46]}  Nf6 {[%clk 0:01:23]} 28. Be2 {[%clk 0:01:44]}  Ra2 {[%clk 0:01:22]} 29. Bf3 {[%clk 0:01:44]}  Ne8 {[%clk 0:01:18]} 30. Kg2 {[%clk 0:01:35]}  Nd6 {[%clk 0:01:18]} 31. Rc7 {[%clk 0:01:34]}  e6 {[%clk 0:01:12]} 32. Rd7 {[%clk 0:01:09]}  Nf5 {[%clk 0:01:11]} 33. Be4 {[%clk 0:01:09]}  Nxe3+ {[%clk 0:01:02]} 34. Kf3 {[%clk 0:01:06]}  Nc4 {[%clk 0:00:56]} 35. Bc6 {[%clk 0:01:00]}  Rb2 {[%clk 0:00:32]} 36. Ra7 {[%clk 0:00:54]}  Rb8 {[%clk 0:00:30]} 37. Kg2 {[%clk 0:00:41]}  Nd6 {[%clk 0:00:29]} 38. Bf3 {[%clk 0:00:38]}  Kf6 {[%clk 0:00:28]} 39. Be2 {[%clk 0:00:37]}  Rb2 {[%clk 0:00:25]} 40. Bd3 {[%clk 0:00:36]}  Rd2 {[%clk 0:00:23]} 41. Bb1 {[%clk 0:00:36]}  Nc4 {[%clk 0:00:21]} 42. Ra4 {[%clk 0:00:26]}  Nb6 {[%clk 0:00:19]} 43. Rb4 {[%clk 0:00:23]}  Nd5 {[%clk 0:00:19]} 44. Ra4 {[%clk 0:00:23]}  Nc3 {[%clk 0:00:17]} 45. Rb4 {[%clk 0:00:22]}  h5 {[%clk 0:00:16]} 46. Be4 {[%clk 0:00:19]}  Nxe4 {[%clk 0:00:11]} 47. Rxe4 {[%clk 0:00:18]}  Kf5 {[%clk 0:00:10]} 48. Rb4 {[%clk 0:00:18]}  Rd3 {[%clk 0:00:10]} 49. Rb7 {[%clk 0:00:17]}  f6 {[%clk 0:00:10]} 50. Rb4 {[%clk 0:00:18]}  h4 {[%clk 0:00:09]} 51. h3 {[%clk 0:00:18]}  Rc3 {[%clk 0:00:07]} 52. Ra4 {[%clk 0:00:17]}  e5 {[%clk 0:00:06]} 53. fxe5 {[%clk 0:00:17]}  fxe5 {[%clk 0:00:07]} 54. Rxh4 {[%clk 0:00:17]}  e4 {[%clk 0:00:06]} 55. Rh8 {[%clk 0:00:17]}  Rc2 {[%clk 0:00:06]} 56. Rf8+ {[%clk 0:00:17]}  Kg5 {[%clk 0:00:06]} 57. Kg3 {[%clk 0:00:18]}  Rc3+ {[%clk 0:00:06]} 58. Kg2 {[%clk 0:00:18]}  Rc2 {[%clk 0:00:06]} 59. Re8 {[%clk 0:00:17]}  Kf4 {[%clk 0:00:05]} 60. Rf8+ {[%clk 0:00:16]}  Kg5 {[%clk 0:00:05]} 1/2-1/2


[Site "https://www.chess.com"]

[Event "Titled Tuesday Blitz May 2 Late 2023"]
[White "Pein, Jonathan"]
[Black "Jodorcovsky Werjivker, Paulo"]
[WhiteFideId "417092"]
[BlackFideId "3700305"]
[WhiteElo "2151"]
[BlackElo "2120"]
[Result "0-1"]
[Round "06"]
[TimeControl "180+2"]
[Date "2023.05.02"]
[WhiteClock "0:00:05"]
[BlackClock "0:00:20"]

1. e4 {[%clk 0:03:00]}  e5 {[%clk 0:02:59]} 2. Nf3 {[%clk 0:02:59]}  Nc6 {[%clk 0:03:00]} 3. Nc3 {[%clk 0:02:56]}  Nf6 {[%clk 0:03:00]} 4. d4 {[%clk 0:02:56]}  exd4 {[%clk 0:02:58]} 5. Nd5 {[%clk 0:02:56]}  Be7 {[%clk 0:02:01]} 6. Bf4 {[%clk 0:02:56]}  d6 {[%clk 0:01:58]} 7. Nxd4 {[%clk 0:02:57]}  Nxe4 {[%clk 0:01:46]} 8. Nb5 {[%clk 0:02:56]}  O-O {[%clk 0:01:41]} 9. Nbxc7 {[%clk 0:02:36]}  Rb8 {[%clk 0:01:40]} 10. Bd3 {[%clk 0:02:35]}  Nc5 {[%clk 0:01:40]} 11. O-O {[%clk 0:02:25]}  Bg5 {[%clk 0:01:34]} 12. Qh5 {[%clk 0:02:15]}  h6 {[%clk 0:01:31]} 13. Bxg5 {[%clk 0:01:57]}  Qxg5 {[%clk 0:01:30]} 14. Qxg5 {[%clk 0:01:55]}  hxg5 {[%clk 0:01:31]} 15. Nb5 {[%clk 0:01:54]}  Be6 {[%clk 0:01:27]} 16. Ne3 {[%clk 0:01:45]}  Nxd3 {[%clk 0:01:23]} 17. cxd3 {[%clk 0:01:46]}  a6 {[%clk 0:01:23]} 18. Nxd6 {[%clk 0:01:43]}  Rfd8 {[%clk 0:01:22]} 19. Ne4 {[%clk 0:01:44]}  g4 {[%clk 0:01:12]} 20. Rfd1 {[%clk 0:01:36]}  Nd4 {[%clk 0:01:09]} 21. Kf1 {[%clk 0:01:29]}  b6 {[%clk 0:01:08]} 22. b3 {[%clk 0:01:26]}  f6 {[%clk 0:01:08]} 23. Rac1 {[%clk 0:01:26]}  Rbc8 {[%clk 0:01:07]} 24. Nc4 {[%clk 0:01:07]}  Rc6 {[%clk 0:01:01]} 25. Ne3 {[%clk 0:00:54]}  Rdc8 {[%clk 0:00:58]} 26. Rxc6 {[%clk 0:00:54]}  Rxc6 {[%clk 0:00:59]} 27. Ke1 {[%clk 0:00:54]}  b5 {[%clk 0:00:53]} 28. Kd2 {[%clk 0:00:53]}  f5 {[%clk 0:00:53]} 29. Ng5 {[%clk 0:00:49]}  f4 {[%clk 0:00:52]} 30. Nxe6 {[%clk 0:00:37]}  fxe3+ {[%clk 0:00:51]} 31. fxe3 {[%clk 0:00:38]}  Rc2+ {[%clk 0:00:50]} 32. Ke1 {[%clk 0:00:38]}  Nxe6 {[%clk 0:00:51]} 33. Rd2 {[%clk 0:00:35]}  Rxd2 {[%clk 0:00:42]} 34. Kxd2 {[%clk 0:00:36]}  Kf7 {[%clk 0:00:40]} 35. Kc3 {[%clk 0:00:37]}  a5 {[%clk 0:00:38]} 36. a4 {[%clk 0:00:33]}  bxa4 {[%clk 0:00:39]} 37. bxa4 {[%clk 0:00:34]}  Nc5 {[%clk 0:00:39]} 38. Kc4 {[%clk 0:00:29]}  Nxa4 {[%clk 0:00:39]} 39. Kb5 {[%clk 0:00:29]}  Nc3+ {[%clk 0:00:38]} 40. Kxa5 {[%clk 0:00:28]}  Nd5 {[%clk 0:00:38]} 41. Kb5 {[%clk 0:00:24]}  Nxe3 {[%clk 0:00:38]} 42. Kc6 {[%clk 0:00:21]}  Nxg2 {[%clk 0:00:36]} 43. d4 {[%clk 0:00:22]}  Nf4 {[%clk 0:00:29]} 44. d5 {[%clk 0:00:22]}  Ke7 {[%clk 0:00:27]} 45. d6+ {[%clk 0:00:22]}  Kd8 {[%clk 0:00:27]} 46. d7 {[%clk 0:00:18]}  Nd3 {[%clk 0:00:25]} 47. Kd6 {[%clk 0:00:08]}  Ne1 {[%clk 0:00:22]} 48. Ke5 {[%clk 0:00:09]}  Nf3+ {[%clk 0:00:20]} 49. Kf4 {[%clk 0:00:09]}  Nxh2 {[%clk 0:00:20]} 50. Kg3 {[%clk 0:00:10]}  Kxd7 {[%clk 0:00:17]} 51. Kxh2 {[%clk 0:00:07]}  Ke6 {[%clk 0:00:17]} 52. Kg3 {[%clk 0:00:07]}  Kf5 {[%clk 0:00:18]} 53. Kg2 {[%clk 0:00:08]}  Kf4 {[%clk 0:00:18]} 54. Kf2 {[%clk 0:00:08]}  g6 {[%clk 0:00:18]} 55. Kg2 {[%clk 0:00:08]}  g3 {[%clk 0:00:18]} 56. Kg1 {[%clk 0:00:07]}  Kf3 {[%clk 0:00:18]} 57. Kf1 {[%clk 0:00:07]}  g2+ {[%clk 0:00:19]} 58. Kg1 {[%clk 0:00:08]}  g5 {[%clk 0:00:19]} 59. Kh2 {[%clk 0:00:06]}  Kf2 {[%clk 0:00:19]} 60. Kh3 {[%clk 0:00:05]}  g4+ {[%clk 0:00:20]} 0-1


[Site "https://www.chess.com"]

[Event "Titled Tuesday Blitz May 2 Late 2023"]
[White "Lopez Perdomo, Juan David"]
[Black "Sai Han Thiha"]
[WhiteFideId "4405137"]
[BlackFideId "13012290"]
[WhiteElo "1965"]
[BlackElo "1954"]
[Result "0-1"]
[Round "06"]
[TimeControl "180+2"]
[Date "2023.05.02"]
[WhiteClock "0:00:17"]
[BlackClock "0:01:40"]

1. e4 {[%clk 0:03:00]}  c6 {[%clk 0:02:59]} 2. c4 {[%clk 0:02:55]}  d5 {[%clk 0:03:00]} 3. exd5 {[%clk 0:02:42]}  cxd5 {[%clk 0:03:00]} 4. d4 {[%clk 0:02:43]}  Nf6 {[%clk 0:03:01]} 5. Nf3 {[%clk 0:02:43]}  e6 {[%clk 0:03:01]} 6. Bd3 {[%clk 0:02:30]}  dxc4 {[%clk 0:02:53]} 7. Bxc4 {[%clk 0:02:31]}  Be7 {[%clk 0:02:53]} 8. O-O {[%clk 0:02:28]}  O-O {[%clk 0:02:54]} 9. Nc3 {[%clk 0:01:52]}  Nc6 {[%clk 0:02:38]} 10. h3 {[%clk 0:01:46]}  b6 {[%clk 0:02:37]} 11. Bg5 {[%clk 0:01:28]}  Bb7 {[%clk 0:02:36]} 12. Bb3 {[%clk 0:01:28]}  Nb4 {[%clk 0:02:33]} 13. a3 {[%clk 0:01:14]}  Nbd5 {[%clk 0:02:32]} 14. Nxd5 {[%clk 0:01:14]}  Bxd5 {[%clk 0:02:31]} 15. Bc2 {[%clk 0:01:13]}  Rc8 {[%clk 0:02:25]} 16. Re1 {[%clk 0:01:13]}  Bxf3 {[%clk 0:02:18]} 17. gxf3 {[%clk 0:01:02]}  Nd5 {[%clk 0:02:18]} 18. Qd3 {[%clk 0:00:59]}  g6 {[%clk 0:02:15]} 19. Bh6 {[%clk 0:00:57]}  Re8 {[%clk 0:02:15]} 20. Re4 {[%clk 0:00:55]}  Bg5 {[%clk 0:02:15]} 21. Bxg5 {[%clk 0:00:51]}  Qxg5+ {[%clk 0:02:16]} 22. Rg4 {[%clk 0:00:51]}  Qf6 {[%clk 0:02:14]} 23. h4 {[%clk 0:00:43]}  h5 {[%clk 0:02:11]} 24. Rg5 {[%clk 0:00:43]}  Nf4 {[%clk 0:02:03]} 25. Qe4 {[%clk 0:00:32]}  Nh3+ {[%clk 0:02:03]} 26. Kh2 {[%clk 0:00:33]}  Nxg5 {[%clk 0:02:02]} 27. hxg5 {[%clk 0:00:34]}  Qxg5 {[%clk 0:02:03]} 28. Rg1 {[%clk 0:00:35]}  Qf6 {[%clk 0:01:53]} 29. Bd3 {[%clk 0:00:22]}  Red8 {[%clk 0:01:51]} 30. Qb7 {[%clk 0:00:16]}  Qxd4 {[%clk 0:01:41]} 31. Bxg6 {[%clk 0:00:16]}  Qxf2+ {[%clk 0:01:40]} 32. Rg2 {[%clk 0:00:17]}  Qh4+ {[%clk 0:01:40]} 33. Kg1 {[%clk 0:00:17]}  Rd1# {[%clk 0:01:40]} 0-1


[Site "https://www.chess.com"]

[Event "Titled Tuesday Blitz May 2 Late 2023"]
[White "Torres Dominguez, David"]
[Black "Nunez V, Gustavo Eduardo"]
[WhiteFideId "2220857"]
[BlackFideId "4403690"]
[WhiteElo "1999"]
[BlackElo "2228"]
[Result "0-1"]
[Round "06"]
[TimeControl "180+2"]
[Date "2023.05.02"]
[WhiteClock "0:00:03"]
[BlackClock "0:00:18"]

1. e4 {[%clk 0:03:00]}  c5 {[%clk 0:02:57]} 2. Nc3 {[%clk 0:02:59]}  g6 {[%clk 0:02:54]} 3. Nf3 {[%clk 0:02:58]}  Bg7 {[%clk 0:02:53]} 4. d4 {[%clk 0:02:59]}  cxd4 {[%clk 0:02:54]} 5. Nxd4 {[%clk 0:02:59]}  Nc6 {[%clk 0:02:54]} 6. Be3 {[%clk 0:02:59]}  Nf6 {[%clk 0:02:54]} 7. Bc4 {[%clk 0:03:00]}  O-O {[%clk 0:02:55]} 8. f3 {[%clk 0:03:00]}  d6 {[%clk 0:02:54]} 9. Qd2 {[%clk 0:02:55]}  Bd7 {[%clk 0:02:54]} 10. O-O-O {[%clk 0:02:51]}  Rc8 {[%clk 0:02:53]} 11. Bb3 {[%clk 0:02:51]}  Re8 {[%clk 0:02:50]} 12. Kb1 {[%clk 0:02:10]}  a6 {[%clk 0:02:49]} 13. Nxc6 {[%clk 0:02:09]}  Bxc6 {[%clk 0:02:41]} 14. Nd5 {[%clk 0:02:06]}  Nxd5 {[%clk 0:02:40]} 15. exd5 {[%clk 0:02:05]}  Bd7 {[%clk 0:02:39]} 16. Bd4 {[%clk 0:02:05]}  Bxd4 {[%clk 0:02:34]} 17. Qxd4 {[%clk 0:02:05]}  Qa5 {[%clk 0:02:31]} 18. h4 {[%clk 0:02:01]}  Qc5 {[%clk 0:02:23]} 19. Qd2 {[%clk 0:01:56]}  b5 {[%clk 0:02:09]} 20. h5 {[%clk 0:01:55]}  Rf8 {[%clk 0:02:10]} 21. g4 {[%clk 0:01:34]}  b4 {[%clk 0:02:03]} 22. Qh6 {[%clk 0:01:28]}  g5 {[%clk 0:01:45]} 23. Qxg5+ {[%clk 0:01:28]}  Kh8 {[%clk 0:01:45]} 24. Qxe7 {[%clk 0:01:27]}  f5 {[%clk 0:01:15]} 25. Qxd7 {[%clk 0:01:26]}  Rc7 {[%clk 0:01:12]} 26. Qe6 {[%clk 0:01:23]}  a5 {[%clk 0:01:06]} 27. gxf5 {[%clk 0:01:13]}  Qb5 {[%clk 0:01:06]} 28. Qh6 {[%clk 0:01:08]}  Rcf7 {[%clk 0:00:46]} 29. Qxd6 {[%clk 0:00:35]}  a4 {[%clk 0:00:45]} 30. Qe5+ {[%clk 0:00:35]}  Rf6 {[%clk 0:00:43]} 31. Rdg1 {[%clk 0:00:20]}  axb3 {[%clk 0:00:40]} 32. axb3 {[%clk 0:00:20]}  Qd7 {[%clk 0:00:37]} 33. Rg6 {[%clk 0:00:19]}  hxg6 {[%clk 0:00:34]} 34. hxg6+ {[%clk 0:00:18]}  Kg8 {[%clk 0:00:33]} 35. Qh2 {[%clk 0:00:12]}  Qg7 {[%clk 0:00:27]} 36. Qe5 {[%clk 0:00:03]}  Rxf5 {[%clk 0:00:26]} 37. Qe6+ {[%clk 0:00:03]}  R8f7 {[%clk 0:00:17]} 38. gxf7+ {[%clk 0:00:03]}  Qxf7 {[%clk 0:00:18]} 0-1


[Site "https://www.chess.com"]

[Event "Titled Tuesday Blitz May 2 Late 2023"]
[White "Rottenwohrer Suarez, Juan"]
[Black "Van Baar, Esper"]
[WhiteFideId "32068182"]
[BlackFideId "1049321"]
[WhiteElo "2174"]
[BlackElo "2180"]
[Result "1-0"]
[Round "06"]
[TimeControl "180+2"]
[Date "2023.05.02"]
[WhiteClock "0:00:03"]
[BlackClock "0:00:03"]

1. d4 {[%clk 0:03:00]}  d5 {[%clk 0:02:59]} 2. c4 {[%clk 0:03:01]}  c6 {[%clk 0:02:59]} 3. cxd5 {[%clk 0:02:59]}  cxd5 {[%clk 0:03:00]} 4. Nc3 {[%clk 0:02:59]}  Nc6 {[%clk 0:02:57]} 5. Nf3 {[%clk 0:03:00]}  Nf6 {[%clk 0:02:53]} 6. Bf4 {[%clk 0:03:00]}  e6 {[%clk 0:02:31]} 7. e3 {[%clk 0:03:01]}  Bd6 {[%clk 0:02:24]} 8. Bxd6 {[%clk 0:02:56]}  Qxd6 {[%clk 0:02:25]} 9. Bd3 {[%clk 0:02:56]}  O-O {[%clk 0:02:23]} 10. O-O {[%clk 0:02:56]}  a6 {[%clk 0:02:19]} 11. a3 {[%clk 0:02:57]}  b5 {[%clk 0:02:16]} 12. b4 {[%clk 0:02:55]}  e5 {[%clk 0:02:06]} 13. dxe5 {[%clk 0:02:54]}  Nxe5 {[%clk 0:02:07]} 14. Be2 {[%clk 0:02:06]}  Be6 {[%clk 0:01:46]} 15. Rc1 {[%clk 0:01:52]}  Rac8 {[%clk 0:01:40]} 16. Qd4 {[%clk 0:01:50]}  Nxf3+ {[%clk 0:01:34]} 17. Bxf3 {[%clk 0:01:47]}  Rc4 {[%clk 0:01:34]} 18. Qd2 {[%clk 0:01:44]}  Rfc8 {[%clk 0:01:20]} 19. Ne2 {[%clk 0:01:40]}  Bf5 {[%clk 0:00:59]} 20. Nd4 {[%clk 0:01:35]}  Be4 {[%clk 0:00:58]} 21. Be2 {[%clk 0:01:34]}  Rxc1 {[%clk 0:00:57]} 22. Rxc1 {[%clk 0:01:33]}  Qd7 {[%clk 0:00:52]} 23. f3 {[%clk 0:01:30]}  Bf5 {[%clk 0:00:42]} 24. Nb3 {[%clk 0:01:23]}  Be6 {[%clk 0:00:22]} 25. Rc5 {[%clk 0:01:18]}  Rxc5 {[%clk 0:00:20]} 26. Nxc5 {[%clk 0:01:02]}  Qc6 {[%clk 0:00:20]} 27. Qd4 {[%clk 0:01:02]}  Nd7 {[%clk 0:00:19]} 28. Nxd7 {[%clk 0:00:46]}  Bxd7 {[%clk 0:00:20]} 29. Kf2 {[%clk 0:00:44]}  g6 {[%clk 0:00:20]} 30. Qa7 {[%clk 0:00:38]}  Kg7 {[%clk 0:00:19]} 31. Qb8 {[%clk 0:00:37]}  Bf5 {[%clk 0:00:18]} 32. g4 {[%clk 0:00:35]}  Bb1 {[%clk 0:00:15]} 33. Qe5+ {[%clk 0:00:32]}  Kg8 {[%clk 0:00:13]} 34. h4 {[%clk 0:00:29]}  Ba2 {[%clk 0:00:08]} 35. h5 {[%clk 0:00:24]}  f6 {[%clk 0:00:04]} 36. Qb8+ {[%clk 0:00:14]}  Kg7 {[%clk 0:00:05]} 37. Kg3 {[%clk 0:00:04]}  Bc4 {[%clk 0:00:04]} 38. Qa7+ {[%clk 0:00:03]}  Kh6 {[%clk 0:00:03]} 39. Bd1 {[%clk 0:00:03]}  Qd6+ {[%clk 0:00:02]} 40. f4 {[%clk 0:00:03]}  g5 {[%clk 0:00:02]} 41. Qd4 {[%clk 0:00:03]}  gxf4+ {[%clk 0:00:02]} 42. exf4 {[%clk 0:00:03]}  Kg7 {[%clk 0:00:02]} 43. g5 {[%clk 0:00:03]}  Qe6 {[%clk 0:00:02]} 44. h6+ {[%clk 0:00:03]}  Kf7 {[%clk 0:00:02]} 45. Bh5+ {[%clk 0:00:03]}  Ke7 {[%clk 0:00:02]} 46. gxf6+ {[%clk 0:00:02]}  Qxf6 {[%clk 0:00:03]} 47. Qc5+ {[%clk 0:00:03]}  Qd6 {[%clk 0:00:03]} 48. Qa7+ {[%clk 0:00:03]}  Kf6 {[%clk 0:00:03]} 49. Qxh7 {[%clk 0:00:03]}  Qe7 {[%clk 0:00:03]} 50. Qg6# {[%clk 0:00:03]} 1-0


[Site "https://www.chess.com"]

[Event "Titled Tuesday Blitz May 2 Late 2023"]
[White "Gasparyan, David"]
[Black "Eisa Mohmood, Alkhoori"]
[WhiteFideId "13311980"]
[BlackFideId "9316116"]
[WhiteElo "2142"]
[BlackElo "1310"]
[Result "0-1"]
[Round "06"]
[TimeControl "180+2"]
[Date "2023.05.02"]
[WhiteClock "0:00:01"]
[BlackClock "0:00:59"]

1. e4 {[%clk 0:03:00]}  c5 {[%clk 0:02:49]} 2. Nc3 {[%clk 0:02:56]}  Nc6 {[%clk 0:02:49]} 3. Bb5 {[%clk 0:02:55]}  Nd4 {[%clk 0:02:48]} 4. Nf3 {[%clk 0:02:55]}  e6 {[%clk 0:02:49]} 5. O-O {[%clk 0:02:55]}  Nxb5 {[%clk 0:02:49]} 6. Nxb5 {[%clk 0:02:55]}  a6 {[%clk 0:02:50]} 7. Nc3 {[%clk 0:02:55]}  d6 {[%clk 0:02:49]} 8. d4 {[%clk 0:02:55]}  cxd4 {[%clk 0:02:49]} 9. Qxd4 {[%clk 0:02:55]}  Nf6 {[%clk 0:02:50]} 10. Bg5 {[%clk 0:02:55]}  Be7 {[%clk 0:02:50]} 11. Rad1 {[%clk 0:02:55]}  O-O {[%clk 0:02:50]} 12. Rfe1 {[%clk 0:02:55]}  Ne8 {[%clk 0:02:48]} 13. Bxe7 {[%clk 0:02:51]}  Qxe7 {[%clk 0:02:49]} 14. Qb6 {[%clk 0:02:50]}  Rb8 {[%clk 0:02:38]} 15. Nd2 {[%clk 0:02:27]}  Bd7 {[%clk 0:02:37]} 16. Nc4 {[%clk 0:02:24]}  Bc6 {[%clk 0:02:37]} 17. Na5 {[%clk 0:02:23]}  Rc8 {[%clk 0:02:26]} 18. Re3 {[%clk 0:01:56]}  Qc7 {[%clk 0:02:25]} 19. Qxc7 {[%clk 0:01:50]}  Rxc7 {[%clk 0:02:26]} 20. Nc4 {[%clk 0:01:45]}  Bxe4 {[%clk 0:02:18]} 21. Rxe4 {[%clk 0:01:42]}  d5 {[%clk 0:02:19]} 22. Nxd5 {[%clk 0:01:42]}  exd5 {[%clk 0:02:19]} 23. Rxd5 {[%clk 0:01:42]}  Nf6 {[%clk 0:02:18]} 24. Rde5 {[%clk 0:01:31]}  Nxe4 {[%clk 0:02:15]} 25. Rxe4 {[%clk 0:01:32]}  Rd8 {[%clk 0:02:05]} 26. g3 {[%clk 0:01:26]}  f5 {[%clk 0:02:00]} 27. Rf4 {[%clk 0:01:14]}  Rd1+ {[%clk 0:01:59]} 28. Kg2 {[%clk 0:01:14]}  Ra1 {[%clk 0:02:00]} 29. Ne3 {[%clk 0:01:10]}  Rxa2 {[%clk 0:01:57]} 30. b3 {[%clk 0:01:07]}  g6 {[%clk 0:01:54]} 31. Rd4 {[%clk 0:01:05]}  Kf7 {[%clk 0:01:53]} 32. Kf3 {[%clk 0:01:02]}  a5 {[%clk 0:01:50]} 33. Rd6 {[%clk 0:00:56]}  a4 {[%clk 0:01:47]} 34. bxa4 {[%clk 0:00:54]}  Rxa4 {[%clk 0:01:47]} 35. h4 {[%clk 0:00:52]}  Ke7 {[%clk 0:01:42]} 36. Rb6 {[%clk 0:00:51]}  Ra3 {[%clk 0:01:41]} 37. Ke2 {[%clk 0:00:51]}  Rd7 {[%clk 0:01:36]} 38. c4 {[%clk 0:00:50]}  Ra2+ {[%clk 0:01:36]} 39. Kf3 {[%clk 0:00:50]}  Ra3 {[%clk 0:01:36]} 40. Ke2 {[%clk 0:00:49]}  Kd8 {[%clk 0:01:31]} 41. Nd5 {[%clk 0:00:45]}  Ra2+ {[%clk 0:01:29]} 42. Kf3 {[%clk 0:00:45]}  Kc8 {[%clk 0:01:28]} 43. Rf6 {[%clk 0:00:44]}  Kb8 {[%clk 0:01:28]} 44. Nb6 {[%clk 0:00:40]}  Rd3+ {[%clk 0:01:28]} 45. Kg2 {[%clk 0:00:39]}  Rdd2 {[%clk 0:01:28]} 46. c5 {[%clk 0:00:21]}  Rxf2+ {[%clk 0:01:27]} 47. Kg1 {[%clk 0:00:22]}  Kc7 {[%clk 0:01:13]} 48. Nd5+ {[%clk 0:00:19]}  Kb8 {[%clk 0:01:12]} 49. Nb6 {[%clk 0:00:18]}  Kc7 {[%clk 0:01:06]} 50. Nd5+ {[%clk 0:00:18]}  Kd7 {[%clk 0:01:06]} 51. Rd6+ {[%clk 0:00:17]}  Ke8 {[%clk 0:01:06]} 52. Nc7+ {[%clk 0:00:13]}  Ke7 {[%clk 0:01:05]} 53. Nd5+ {[%clk 0:00:13]}  Kf7 {[%clk 0:01:05]} 54. Rd7+ {[%clk 0:00:12]}  Ke6 {[%clk 0:01:06]} 55. Rd6+ {[%clk 0:00:12]}  Ke5 {[%clk 0:01:06]} 56. Nc3 {[%clk 0:00:12]}  Rac2 {[%clk 0:01:00]} 57. Nd5 {[%clk 0:00:01]}  Rg2+ {[%clk 0:00:59]} 58. Kf1 {[%clk 0:00:01]}  Rgd2 {[%clk 0:00:59]} 0-1


[Site "https://www.chess.com"]

[Event "Titled Tuesday Blitz May 2 Late 2023"]
[White "Bjelobrk, Igor"]
[Black "Fuentes Godoy, Lilia Ivonne"]
[WhiteFideId "4300726"]
[BlackFideId "5104130"]
[WhiteElo "2335"]
[BlackElo "2096"]
[Result "1-0"]
[Round "06"]
[TimeControl "180+2"]
[Date "2023.05.02"]
[WhiteClock "0:01:50"]
[BlackClock "0:00:27"]

1. d4 {[%clk 0:02:56]}  d5 {[%clk 0:02:58]} 2. c4 {[%clk 0:02:55]}  e6 {[%clk 0:02:58]} 3. Nf3 {[%clk 0:02:52]}  c6 {[%clk 0:02:58]} 4. g3 {[%clk 0:02:48]}  f5 {[%clk 0:02:51]} 5. Bg2 {[%clk 0:02:48]}  Nf6 {[%clk 0:02:51]} 6. O-O {[%clk 0:02:47]}  Bd6 {[%clk 0:02:50]} 7. b3 {[%clk 0:02:44]}  O-O {[%clk 0:02:50]} 8. Ba3 {[%clk 0:02:40]}  Bxa3 {[%clk 0:02:48]} 9. Nxa3 {[%clk 0:02:40]}  Qe7 {[%clk 0:02:44]} 10. Nc2 {[%clk 0:02:40]}  Nbd7 {[%clk 0:02:44]} 11. e3 {[%clk 0:02:33]}  Ne4 {[%clk 0:02:40]} 12. Nce1 {[%clk 0:02:32]}  b6 {[%clk 0:02:39]} 13. Nd3 {[%clk 0:02:31]}  Bb7 {[%clk 0:02:40]} 14. Rc1 {[%clk 0:02:29]}  c5 {[%clk 0:02:28]} 15. cxd5 {[%clk 0:02:24]}  exd5 {[%clk 0:02:28]} 16. dxc5 {[%clk 0:02:24]}  Ndxc5 {[%clk 0:02:27]} 17. Nf4 {[%clk 0:02:17]}  Rfd8 {[%clk 0:02:23]} 18. Nd4 {[%clk 0:02:17]}  g6 {[%clk 0:02:07]} 19. b4 {[%clk 0:02:17]}  Na6 {[%clk 0:01:53]} 20. a3 {[%clk 0:02:15]}  Rac8 {[%clk 0:01:49]} 21. Qb3 {[%clk 0:02:05]}  Nd2 {[%clk 0:01:39]} 22. Qa4 {[%clk 0:01:58]}  Nxf1 {[%clk 0:01:34]} 23. Rxc8 {[%clk 0:01:56]}  Rxc8 {[%clk 0:01:29]} 24. Bxf1 {[%clk 0:01:56]}  Rc1 {[%clk 0:01:12]} 25. Kg2 {[%clk 0:01:51]}  Qe6 {[%clk 0:00:27]} 26. Nfxe6 {[%clk 0:01:50]} 1-0


[Site "https://www.chess.com"]